fUST/lending_fUST_20240424
["ID","MTS","AMOUNT","RATE_DAILY","PERIOD"]
[323372215,1713939041945,-500.0,0.00016438,2]
[323372216,1713939041954,-500.0,0.00016438,2]
[323372217,1713939041963,-442.11905763,0.00016438,2]
[323372218,1713939041972,-500.0,0.00016438,2]
[323372219,1713939041982,-500.0,0.00016438,2]
[323372220,1713939041991,-500.0,0.00016438,2]
[323372221,1713939042000,-500.0,0.00016438,2]
[323372222,1713939042010,-500.0,0.00016438,2]
[323372223,1713939042019,-11575.6,0.00016438,2]
[323372224,1713939042030,-1925.76,0.00016438,2]
[323372225,1713939042039,-700.55,0.00016438,2]
[323372226,1713939042048,-500.0,0.00016438,2]
[323372227,1713939042057,-500.0,0.00016438,2]
[323372228,1713939042066,-500.0,0.00016438,2]
[323372229,1713939042075,-500.0,0.00016438,2]
[323372230,1713939042084,-500.0,0.00016438,2]
[323372231,1713939042093,-500.0,0.00016438,2]
[323372232,1713939042103,-504.46,0.00016438,2]
[323372233,1713939042112,-500.0,0.00016438,2]
[323372234,1713939042121,-500.0,0.00016438,2]
[323372235,1713939042236,-500.0,0.00016438,2]
[323372236,1713939042261,-500.0,0.00016438,2]
[323372237,1713939042270,-1061.87,0.00016438,2]
[323372238,1713939042279,-8219.09,0.00016438,2]
[323372239,1713939042289,-151.0,0.00016438,2]
[323372240,1713939042298,-500.0,0.00016438,2]
[323372241,1713939042308,-1040.97,0.00016438,2]
[323372242,1713939042317,-500.0,0.00016438,2]
[323372243,1713939042326,-500.0,0.00016438,2]
[323372244,1713939042339,-1577.27,0.00016438,2]
[323372245,1713939042348,-500.0,0.00016438,2]
[323372246,1713939042357,-500.0,0.00016438,2]
[323372247,1713939042367,-500.0,0.00016438,2]
[323372248,1713939042377,-647.4,0.00016438,2]
[323372250,1713939042387,-509.71347323,0.00016438,2]
[323372251,1713939042396,-1120.48,0.00016438,2]
[323372252,1713939042406,-500.0,0.00016438,2]
[323372253,1713939042418,-184.16387975,0.00016438,2]
[323372254,1713939042427,-500.0,0.00016438,2]
[323372255,1713939042437,-439.44795707,0.00016438,2]
[323372256,1713939042447,-1207.54,0.00016438,2]
[323372257,1713939042456,-16464.53,0.00016438,2]
[323372259,1713939042466,-500.0,0.00016438,2]
[323372260,1713939042475,-500.0,0.00016438,2]
[323372261,1713939042484,-500.0,0.00016438,2]
[323372262,1713939042493,-500.0,0.00016438,2]
[323372263,1713939042503,-500.0,0.00016438,2]
[323372264,1713939042512,-500.0,0.00016438,2]
[323372265,1713939042521,-500.0,0.00016438,2]
[323372266,1713939042530,-500.0,0.00016438,2]
[323372267,1713939042539,-500.0,0.00016438,2]
[323372268,1713939042548,-500.0,0.00016438,2]
[323372269,1713939042557,-500.0,0.00016438,2]
[323372270,1713939042566,-500.0,0.00016438,2]
[323372271,1713939042576,-399.02971077,0.00016438,2]
[323372272,1713939042585,-500.0,0.00016438,2]
[323372273,1713939042594,-500.0,0.00016438,2]
[323372274,1713939042606,-500.0,0.00016438,2]
[323372275,1713939042615,-974.3,0.00016438,2]
[323372276,1713939042624,-500.0,0.00016438,2]
[323372277,1713939042633,-500.0,0.00016438,2]
[323372278,1713939042643,-741.07,0.00016438,2]
[323372279,1713939042653,-500.0,0.00016438,2]
[323372280,1713939042662,-311.72258674,0.00016438,2]
[323372281,1713939042672,-500.0,0.00016438,2]
[323372282,1713939042681,-500.0,0.00016438,2]
[323372283,1713939042690,-887.37,0.00016438,2]
[323372284,1713939042699,-500.0,0.00016438,2]
[323372286,1713939042708,-500.0,0.00016438,2]
[323372288,1713939042717,-500.0,0.00016438,2]
[323372290,1713939042727,-500.0,0.00016438,2]
[323372292,1713939042736,-500.0,0.00016438,2]
[323372294,1713939042745,-500.0,0.00016438,2]
[323372295,1713939042756,-500.0,0.00016438,2]
[323372296,1713939042765,-5889.42,0.00016438,2]
[323372297,1713939042774,-785.95,0.00016438,2]
[323372298,1713939042782,-500.0,0.00016438,2]
[323372299,1713939042791,-500.0,0.00016438,2]
[323372300,1713939042800,-500.0,0.00016438,2]
[323372301,1713939042809,-498.50789859,0.00016438,2]
[323372302,1713939042818,-500.0,0.00016438,2]
[323372303,1713939042827,-500.0,0.00016438,2]
[323372304,1713939042836,-500.0,0.00016438,2]
[323372305,1713939042844,-500.0,0.00016438,2]
[323372306,1713939042854,-1977.47,0.00016438,2]
[323372307,1713939042863,-500.0,0.00016438,2]
[323372308,1713939042872,-181.10246799,0.00016438,2]
[323372309,1713939042881,-500.0,0.00016438,2]
[323372310,1713939042890,-5792.77,0.00016438,2]
[323372311,1713939042898,-500.0,0.00016438,2]
[323372312,1713939042907,-500.0,0.00016438,2]
[323372313,1713939042918,-501.70370906,0.00016438,2]
[323372314,1713939042926,-500.0,0.00016438,2]
[323372315,1713939042936,-500.0,0.00016438,2]
[323372316,1713939042944,-500.0,0.00016438,2]
[323372317,1713939042953,-610.52,0.00016438,2]
[323372318,1713939042963,-707.91,0.00016438,2]
[323372319,1713939042971,-619.63,0.00016438,2]
[323372320,1713939042981,-502.77968063,0.00016438,2]
[323372321,1713939042990,-4318.85,0.00016438,2]
[323372322,1713939042999,-502.80810411,0.00016438,2]
[323372323,1713939043008,-500.0,0.00016438,2]
[323372324,1713939043017,-500.0,0.00016438,2]
[323372325,1713939043026,-500.0,0.00016438,2]
[323372326,1713939043035,-500.0,0.00016438,2]
[323372327,1713939043044,-500.0,0.00016438,2]
[323372328,1713939043053,-603.1,0.00016438,2]
[323372329,1713939043062,-1106.0,0.00016438,2]
[323372330,1713939043070,-500.0,0.00016438,2]
[323372331,1713939043079,-1265.28,0.00016438,2]
[323372332,1713939043088,-2996.98,0.00016438,2]
[323372333,1713939043096,-500.0,0.00016438,2]
[323372334,1713939043105,-600.25,0.00016438,2]
[323372335,1713939043114,-500.0,0.00016438,2]
[323372336,1713939043122,-500.0,0.00016438,2]
[323372337,1713939043131,-536.24,0.00016438,2]
[323372338,1713939043139,-1067.35,0.00016438,2]
[323372339,1713939043148,-500.0,0.00016438,2]
[323372340,1713939043157,-520.89,0.00016438,2]
[323372341,1713939043166,-500.0,0.00016438,2]
[323372342,1713939043174,-500.0,0.00016438,2]
[323372344,1713939043183,-500.0,0.00016438,2]
[323372347,1713939043192,-500.0,0.00016438,2]
[323372349,1713939043201,-1529.57,0.00016438,2]
[323372351,1713939043210,-500.0,0.00016438,2]
[323372354,1713939043219,-500.0,0.00016438,2]
[323372356,1713939043229,-500.0,0.00016438,2]
[323372359,1713939043238,-1116.29,0.00016438,2]
[323372363,1713939043247,-1165.06,0.00016438,2]
[323372364,1713939043257,-500.0,0.00016438,2]
[323372365,1713939043266,-567.33,0.00016438,2]
[323372366,1713939043275,-500.0,0.00016438,2]
[323372368,1713939043284,-500.0,0.00016438,2]
[323372370,1713939043294,-500.0,0.00016438,2]
[323372372,1713939043303,-500.0,0.00016438,2]
[323372374,1713939043312,-506.05723835,0.00016438,2]
[323372376,1713939043322,-12818.21,0.00016438,2]
[323372379,1713939043332,-500.0,0.00016438,2]
[323372381,1713939043342,-500.0,0.00016438,2]
[323372383,1713939043351,-500.0,0.00016438,2]
[323372385,1713939043361,-500.0,0.00016438,2]
[323372387,1713939043370,-500.0,0.00016438,2]
[323372389,1713939043379,-500.0,0.00016438,2]
[323372390,1713939043388,-500.0,0.00016438,2]
[323372392,1713939043397,-500.0,0.00016438,2]
[323372394,1713939043406,-764.23,0.00016438,2]
[323372397,1713939043418,-500.0,0.00016438,2]
[323372399,1713939043433,-500.0,0.00016438,2]
[323372402,1713939043447,-236.4521685,0.00016438,2]
[323372404,1713939043461,-496.38210146,0.00016438,2]
[323372407,1713939043474,-402.07564828,0.00016438,2]
[323372409,1713939043485,-500.0,0.00016438,2]
[323372411,1713939043498,-500.0,0.00016438,2]
[323372414,1713939043512,-996.61,0.00016438,2]
[323372416,1713939043525,-2046.55,0.00016438,2]
[323372419,1713939043538,-500.0,0.00016438,2]
[323372421,1713939043550,-1126.58,0.00016438,2]
[323372424,1713939043563,-500.0,0.00016438,2]
[323372426,1713939043574,-2000.0,0.00016438,2]
[323372428,1713939043586,-500.0,0.00016438,2]
[323372430,1713939043598,-453.33621322,0.00016438,2]
[323372433,1713939043611,-500.0,0.00016438,2]
[323372435,1713939043623,-500.0,0.00016438,2]
[323372438,1713939043636,-2660.06,0.00016438,2]
[323372440,1713939043648,-500.0,0.00016438,2]
[323372442,1713939043658,-18059.62,0.00016438,2]
[323372444,1713939043672,-500.0,0.00016438,2]
[323372447,1713939043685,-703.56,0.00016438,2]
[323372449,1713939043697,-449.43301271,0.00016438,2]
[323372452,1713939043710,-500.0,0.00016438,2]
[323372454,1713939043722,-500.0,0.00016438,2]
[323372456,1713939043734,-500.3042794,0.00016438,2]
[323372458,1713939043746,-400.9379718,0.00016438,2]
[323372459,1713939043759,-272.61360926,0.000165,2]
[323372460,1713939043773,-913.02,0.00016511,2]
[323372461,1713939043786,-530.3,0.00016511,2]
[323372463,1713939043801,-500.0,0.00016611,2]
[323372464,1713939043814,-555.29581383,0.00016611,2]
[323372465,1713939043825,-500.0,0.00016611,2]
[323372466,1713939043835,-620.00002237,0.00016615,2]
[323372468,1713939043846,-913.02,0.00016711,2]
[323372470,1713939043857,-913.02,0.00016711,2]
[323372471,1713939043870,-913.02,0.00016711,2]
[323372472,1713939043883,-913.02,0.00016711,2]
[323372473,1713939043895,-913.02,0.00016711,2]
[323372474,1713939043909,-913.02,0.00016711,2]
[323372475,1713939043921,-530.3,0.00016711,2]
[323372476,1713939043932,-530.3,0.00016711,2]
[323372477,1713939043942,-530.3,0.00016711,2]
[323372478,1713939043957,-530.3,0.00016711,2]
[323372479,1713939043969,-530.3,0.00016711,2]
[323372480,1713939043980,-530.3,0.00016711,2]
[323372481,1713939043991,-500.0,0.00016711,2]
[323372482,1713939044002,-500.0,0.00016711,2]
[323372483,1713939044013,-500.0,0.00016711,2]
[323372484,1713939044025,-500.0,0.00016711,2]
[323372485,1713939044036,-500.0,0.00016711,2]
[323372486,1713939044047,-500.0,0.00016711,2]
[323372487,1713939044058,-172.06315201,0.00016711,2]
[323372488,1713939044070,-500.0,0.00016712,2]
[323372489,1713939044081,-500.0,0.00016712,2]
[323372490,1713939044092,-570.95964581,0.00016712,2]
[323372491,1713939044104,-541.15010446,0.00016712,2]
[323372492,1713939044115,-500.467158,0.00016712,2]
[323372493,1713939044127,-1497.98,0.00016712,2]
[323372494,1713939044138,-500.0,0.00016712,2]
[323372495,1713939044150,-502.18354424,0.00016712,2]
[323372496,1713939044163,-500.0,0.00016712,2]
[323372497,1713939044176,-500.0,0.00016712,2]
[323372498,1713939044188,-500.0,0.00016712,2]
[323372499,1713939044198,-500.0,0.00016712,2]
[323372500,1713939044210,-500.0,0.00016712,2]
[323372501,1713939044221,-564.8,0.00016712,2]
[323372502,1713939044232,-529.86,0.00016712,2]
[323372503,1713939044243,-500.0,0.00016712,2]
[323372504,1713939044254,-502.95,0.00016712,2]
[323372505,1713939044264,-501.06505482,0.00016712,2]
[323372506,1713939044275,-500.0,0.00016712,2]
[323372507,1713939044286,-500.0,0.00016712,2]
[323372508,1713939044304,-500.0,0.00016712,2]
[323372509,1713939044316,-611.52,0.00016712,2]
[323372510,1713939044328,-500.0,0.00016712,2]
[323372511,1713939044344,-228.10138109,0.00016712,2]
[323372512,1713939044355,-200.26874706,0.00016712,2]
[323372513,1713939044366,-500.0,0.00016712,2]
[323372514,1713939044378,-500.0,0.00016712,2]
[323372515,1713939044389,-500.0,0.00016712,2]
[323372516,1713939044401,-500.0,0.00016712,2]
[323372517,1713939044413,-500.92107633,0.00016712,2]
[323372518,1713939044425,-500.0,0.00016712,2]
[323372519,1713939044437,-242.37419456,0.00016712,2]
[323372520,1713939044448,-500.0,0.00016712,2]
[323372521,1713939044458,-500.0,0.00016712,2]
[323372522,1713939044470,-507.82645358,0.00016712,2]
[323372523,1713939044481,-500.0,0.00016712,2]
[323372524,1713939044492,-500.0,0.00016712,2]
[323372525,1713939044504,-500.98348651,0.00016712,2]
[323372526,1713939044515,-500.0,0.00016712,2]
[323372527,1713939044526,-500.0,0.00016712,2]
[323372528,1713939044537,-500.0,0.00016712,2]
[323372529,1713939044548,-500.0,0.00016712,2]
[323372530,1713939044559,-647.3776122,0.00016712,2]
[323372531,1713939044570,-500.0,0.00016712,2]
[323372532,1713939044581,-500.0,0.00016712,2]
[323372533,1713939044592,-154.33448396,0.00016712,2]
[323372534,1713939044604,-500.0,0.00016712,2]
[323372535,1713939044616,-500.0,0.00016712,2]
[323372536,1713939044628,-500.0,0.00016712,2]
[323372537,1713939044639,-500.0,0.00016712,2]
[323372538,1713939044649,-917.43,0.00016712,2]
[323372539,1713939044660,-512.74678466,0.00016712,2]
[323372540,1713939044672,-512.78430323,0.00016712,2]
[323372541,1713939044683,-538.11,0.00016712,2]
[323372542,1713939044695,-602.15,0.00016712,2]
[323372543,1713939044706,-500.0,0.00016712,2]
[323372544,1713939044717,-500.0,0.00016712,2]
[323372545,1713939044728,-500.0,0.00016712,2]
[323372546,1713939044739,-500.0,0.00016712,2]
[323372547,1713939044750,-638.62777397,0.00016712,2]
[323372548,1713939044760,-503.94596594,0.00016712,2]
[323372549,1713939044772,-500.0,0.00016712,2]
[323372550,1713939044782,-1614.0,0.00016712,2]
[323372551,1713939044794,-643.05,0.00016712,2]
[323372552,1713939044806,-500.0,0.00016712,2]
[323372553,1713939044817,-500.0,0.00016712,2]
[323372554,1713939044829,-505.4742734,0.00016712,2]
[323372555,1713939044841,-493.57828559,0.00016712,2]
[323372556,1713939044853,-500.0,0.00016712,2]
[323372557,1713939044864,-500.0,0.00016712,2]
[323372558,1713939044875,-500.0,0.00016712,2]
[323372559,1713939044885,-500.0,0.00016712,2]
[323372560,1713939044896,-500.80733792,0.00016712,2]
[323372561,1713939044908,-1223.73,0.00016712,2]
[323372562,1713939044920,-500.0,0.00016712,2]
[323372563,1713939044931,-272.97830825,0.00016712,2]
[323372564,1713939044942,-689.8,0.00016712,2]
[323372565,1713939045087,-500.0,0.00016712,2]
[323372566,1713939045150,-500.0,0.00016712,2]
[323372567,1713939045160,-500.0,0.00016712,2]
[323372568,1713939045173,-878.64,0.00016712,2]
[323372569,1713939045182,-500.0,0.00016712,2]
[323372570,1713939045192,-160.38501174,0.00016712,2]
[323372572,1713939045202,-500.0,0.00016712,2]
[323372574,1713939045211,-500.0,0.00016712,2]
[323372575,1713939045220,-500.0,0.00016712,2]
[323372576,1713939045230,-656.69,0.00016712,2]
[323372577,1713939045239,-500.0,0.00016712,2]
[323372578,1713939045248,-500.0,0.00016712,2]
[323372579,1713939045257,-500.0,0.00016712,2]
[323372580,1713939045267,-500.0,0.00016712,2]
[323372581,1713939045276,-362.0002281,0.00016712,2]
[323372582,1713939045286,-500.0,0.00016712,2]
[323372583,1713939045295,-500.0,0.00016712,2]
[323372584,1713939045305,-500.0,0.00016712,2]
[323372586,1713939045315,-500.0,0.00016712,2]
[323372588,1713939045325,-500.0,0.00016712,2]
[323372589,1713939045338,-500.0,0.00016712,2]
[323372590,1713939045348,-500.0,0.00016712,2]
[323372591,1713939045357,-500.0,0.00016712,2]
[323372592,1713939045366,-699.92,0.00016712,2]
[323372593,1713939045377,-500.0,0.00016712,2]
[323372594,1713939045386,-305.64776956,0.00016712,2]
[323372595,1713939045395,-500.0,0.00016712,2]
[323372596,1713939045405,-500.0,0.00016712,2]
[323372597,1713939045418,-500.0,0.00016712,2]
[323372598,1713939045429,-362.61373832,0.00016712,2]
[323372599,1713939045439,-500.0,0.00016712,2]
[323372600,1713939045448,-500.0,0.00016712,2]
[323372601,1713939045457,-500.0,0.00016712,2]
[323372602,1713939045467,-501.70168365,0.00016712,2]
[323372603,1713939045476,-1579.56,0.00016712,2]
[323372605,1713939045485,-500.0,0.00016712,2]
[323372607,1713939045494,-500.0,0.00016712,2]
[323372609,1713939045505,-224.36484176,0.00016712,2]
[323372610,1713939045514,-355.10641347,0.00016712,2]
[323372611,1713939045523,-1332.45,0.00016712,2]
[323372612,1713939045532,-500.0,0.00016712,2]
[323372614,1713939045541,-500.0,0.00016712,2]
[323372616,1713939045550,-1426.82,0.00016712,2]
[323372618,1713939045559,-500.0,0.00016712,2]
[323372619,1713939045568,-500.0,0.00016712,2]
[323372620,1713939045577,-500.0,0.00016712,2]
[323372621,1713939045586,-500.0,0.00016712,2]
[323372622,1713939045595,-500.0,0.00016712,2]
[323372623,1713939045604,-500.0,0.00016712,2]
[323372624,1713939045613,-773.23,0.00016712,2]
[323372625,1713939045623,-500.0,0.00016712,2]
[323372626,1713939045632,-500.0,0.00016712,2]
[323372627,1713939045641,-500.0,0.00016712,2]
[323372629,1713939045650,-500.0,0.00016712,2]
[323372631,1713939045659,-500.0,0.00016712,2]
[323372633,1713939045671,-500.0,0.00016712,2]
[323372634,1713939045680,-500.0,0.00016712,2]
[323372635,1713939045689,-493.77022189,0.00016712,2]
[323372636,1713939045697,-500.0,0.00016712,2]
[323372637,1713939045706,-500.0,0.00016712,2]
[323372638,1713939045715,-500.0,0.00016712,2]
[323372639,1713939045723,-721.12,0.00016712,2]
[323372640,1713939045732,-504.59640057,0.00016712,2]
[323372641,1713939045741,-500.0,0.00016712,2]
[323372642,1713939045752,-500.0,0.00016712,2]
[323372643,1713939045764,-500.0,0.00016712,2]
[323372644,1713939045773,-500.0,0.00016712,2]
[323372645,1713939045782,-819.1,0.00016712,2]
[323372646,1713939045791,-500.0,0.00016712,2]
[323372647,1713939045800,-500.0,0.00016712,2]
[323372648,1713939045809,-500.0,0.00016712,2]
[323372649,1713939045818,-500.0,0.00016712,2]
[323372650,1713939045828,-500.0,0.00016712,2]
[323372651,1713939045838,-501.14257175,0.00016712,2]
[323372652,1713939045847,-500.0,0.00016712,2]
[323372653,1713939045856,-503.84025622,0.00016712,2]
[323372654,1713939045865,-500.0,0.00016712,2]
[323372655,1713939045874,-500.0,0.00016712,2]
[323372656,1713939045883,-500.0,0.00016712,2]
[323372657,1713939045892,-658.09,0.00016712,2]
[323372658,1713939045902,-502.14820261,0.00016712,2]
[323372659,1713939045911,-500.72494323,0.00016712,2]
[323372660,1713939045922,-886.63,0.00016712,2]
[323372661,1713939045931,-500.0,0.00016712,2]
[323372662,1713939045942,-500.0,0.00016712,2]
[323372663,1713939045962,-2094.5,0.00016712,2]
[323372664,1713939045971,-500.0,0.00016712,2]
[323372665,1713939045980,-500.0,0.00016712,2]
[323372666,1713939045989,-500.0,0.00016712,2]
[323372667,1713939045998,-500.0,0.00016712,2]
[323372668,1713939046007,-557.35,0.00016712,2]
[323372669,1713939046016,-500.0,0.00016712,2]
[323372670,1713939046025,-500.0,0.00016712,2]
[323372671,1713939046035,-500.0,0.00016712,2]
[323372672,1713939046044,-500.0,0.00016712,2]
[323372673,1713939046053,-500.0,0.00016712,2]
[323372674,1713939046062,-500.0,0.00016712,2]
[323372675,1713939046071,-851.8,0.00016712,2]
[323372676,1713939046081,-11113.41,0.00016712,2]
[323372677,1713939046090,-500.0,0.00016712,2]
[323372678,1713939046100,-500.0,0.00016712,2]
[323372679,1713939046109,-515.67267276,0.00016712,2]
[323372680,1713939046118,-1143.96,0.00016712,2]
[323372681,1713939046127,-687.86,0.00016712,2]
[323372682,1713939046137,-537.88965798,0.00016712,2]
[323372683,1713939046146,-609.68729219,0.00016712,2]
[323372684,1713939046156,-500.0,0.00016712,2]
[323372685,1713939046165,-500.0,0.00016712,2]
[323372686,1713939046174,-500.0,0.00016712,2]
[323372687,1713939046184,-500.0,0.00016712,2]
[323372688,1713939046193,-1563.7,0.00016712,2]
[323372689,1713939046202,-500.0,0.00016712,2]
[323372690,1713939046211,-500.0,0.00016712,2]
[323372691,1713939046220,-500.0,0.00016712,2]
[323372692,1713939046229,-500.0,0.00016712,2]
[323372693,1713939046238,-500.27138375,0.00016712,2]
[323372694,1713939046247,-501.31624573,0.00016712,2]
[323372695,1713939046256,-500.0,0.00016712,2]
[323372696,1713939046265,-500.0,0.00016712,2]
[323372697,1713939046274,-500.22,0.00016712,2]
[323372698,1713939046284,-500.0,0.00016712,2]
[323372699,1713939046293,-500.0,0.00016712,2]
[323372700,1713939046302,-500.0,0.00016712,2]
[323372701,1713939046311,-500.0,0.00016712,2]
[323372702,1713939046320,-500.0,0.00016712,2]
[323372703,1713939046330,-514.25355199,0.00016712,2]
[323372704,1713939046343,-500.0,0.00016712,2]
[323372705,1713939046352,-500.32518761,0.00016712,2]
[323372706,1713939046361,-500.0,0.00016712,2]
[323372707,1713939046370,-500.0,0.00016712,2]
[323372708,1713939046379,-528.40626369,0.00016712,2]
[323372709,1713939046388,-500.0,0.00016712,2]
[323372710,1713939046397,-500.88350996,0.00016712,2]
[323372711,1713939046406,-1620.92,0.00016712,2]
[323372712,1713939046415,-500.0,0.00016712,2]
[323372713,1713939046428,-500.0,0.00016712,2]
[323372714,1713939046437,-500.0,0.00016712,2]
[323372715,1713939046445,-2170.45,0.00016712,2]
[323372716,1713939046454,-739.39,0.00016712,2]
[323372717,1713939046463,-500.0,0.00016712,2]
[323372718,1713939046472,-500.0,0.00016712,2]
[323372719,1713939046481,-1471.05,0.00016712,2]
[323372720,1713939046490,-793.33,0.00016712,2]
[323372721,1713939046499,-594.86,0.00016712,2]
[323372722,1713939046508,-1337.85,0.00016712,2]
[323372723,1713939046517,-1871.21,0.00016712,2]
[323372724,1713939046526,-1178.58,0.00016712,2]
[323372725,1713939046535,-7283.64,0.00016712,2]
[323372726,1713939046543,-500.0,0.00016712,2]
[323372727,1713939046552,-710.03,0.00016712,2]
[323372728,1713939046562,-500.0,0.00016712,2]
[323372729,1713939046571,-500.0,0.00016712,2]
[323372730,1713939046580,-500.0,0.00016712,2]
[323372731,1713939046589,-1325.67,0.00016712,2]
[323372732,1713939046598,-500.40325805,0.00016712,2]
[323372733,1713939046607,-542.43,0.00016712,2]
[323372734,1713939046616,-487.27586317,0.00016712,2]
[323372735,1713939046626,-1916.92,0.00016712,2]
[323372736,1713939046635,-6828.18,0.00016712,2]
[323372737,1713939046645,-8176.76,0.00016712,2]
[323372738,1713939046653,-500.0,0.00016712,2]
[323372739,1713939046662,-500.0,0.00016712,2]
[323372740,1713939046672,-500.0,0.00016712,2]
[323372741,1713939046681,-186.90170609,0.00016712,2]
[323372742,1713939046690,-500.0,0.00016712,2]
[323372743,1713939046699,-1001.14,0.00016712,2]
[323372744,1713939046708,-500.0,0.00016712,2]
[323372745,1713939046717,-11575.6,0.00016712,2]
[323372746,1713939046726,-1925.76,0.00016712,2]
[323372747,1713939046735,-700.55,0.00016712,2]
[323372748,1713939046744,-500.52186241,0.00016712,2]
[323372749,1713939046754,-500.0,0.00016712,2]
[323372750,1713939046763,-500.0,0.00016712,2]
[323372751,1713939046772,-500.0,0.00016712,2]
[323372752,1713939046783,-500.0,0.00016712,2]
[323372753,1713939046793,-504.46,0.00016712,2]
[323372754,1713939046801,-503.43849542,0.00016712,2]
[323372755,1713939046810,-500.0,0.00016712,2]
[323372756,1713939046819,-500.51741182,0.00016712,2]
[323372757,1713939046828,-501.36285965,0.00016712,2]
[323372758,1713939046837,-1061.87,0.00016712,2]
[323372759,1713939046846,-8219.09,0.00016712,2]
[323372760,1713939046856,-1040.97,0.00016712,2]
[323372761,1713939046865,-500.0,0.00016712,2]
[323372762,1713939046874,-1577.27,0.00016712,2]
[323372763,1713939046883,-500.0,0.00016712,2]
[323372764,1713939046892,-500.0,0.00016712,2]
[323372765,1713939046902,-500.0,0.00016712,2]
[323372766,1713939046911,-647.4,0.00016712,2]
[323372767,1713939046921,-1120.48,0.00016712,2]
[323372768,1713939046930,-500.0,0.00016712,2]
[323372769,1713939046939,-500.0,0.00016712,2]
[323372770,1713939046949,-1207.54,0.00016712,2]
[323372771,1713939046958,-16464.53,0.00016712,2]
[323372772,1713939046968,-500.84507688,0.00016712,2]
[323372773,1713939046978,-500.0,0.00016712,2]
[323372774,1713939046987,-500.0,0.00016712,2]
[323372775,1713939046996,-313.11472914,0.00016712,2]
[323372776,1713939047006,-500.43747297,0.00016712,2]
[323372777,1713939047015,-501.30256273,0.00016712,2]
[323372778,1713939047024,-500.0,0.00016712,2]
[323372779,1713939047034,-500.0,0.00016712,2]
[323372780,1713939047043,-500.0,0.00016712,2]
[323372781,1713939047052,-500.0,0.00016712,2]
[323372782,1713939047061,-974.3,0.00016712,2]
[323372783,1713939047070,-500.7999827,0.00016712,2]
[323372784,1713939047079,-500.0,0.00016712,2]
[323372785,1713939047089,-741.07,0.00016712,2]
[323372786,1713939047098,-500.0,0.00016712,2]
[323372787,1713939047107,-500.0,0.00016712,2]
[323372788,1713939047116,-887.37,0.00016712,2]
[323372789,1713939047125,-500.0,0.00016712,2]
[323372790,1713939047134,-500.0,0.00016712,2]
[323372791,1713939047144,-484.08119159,0.00016712,2]
[323372792,1713939047153,-151.0,0.00016712,2]
[323372793,1713939047162,-151.0,0.00016712,2]
[323372794,1713939047173,-500.0,0.00016712,2]
[323372795,1713939047183,-500.84504057,0.00016712,2]
[323372796,1713939047192,-500.0,0.00016712,2]
[323372797,1713939047201,-500.0,0.00016712,2]
[323372798,1713939047210,-785.95,0.00016712,2]
[323372799,1713939047219,-5889.42,0.00016712,2]
[323372800,1713939047229,-500.0,0.00016712,2]
[323372801,1713939047239,-504.32436504,0.00016712,2]